bitfinex/quotes_BTCUSD_20240718
["timestamp","ask_amount","ask_price","bid_price","bid_amount"]
[1721331208495,0.005829,63479.0,63478.0,2.23865284]
[1721331208937,0.005829,63479.0,63478.0,2.35817396]
[1721331209179,0.005829,63479.0,63478.0,2.31115284]
[1721331209395,0.005829,63479.0,63478.0,2.35811288]
[1721331209845,0.005829,63479.0,63478.0,2.35800816]
[1721331210546,0.005829,63479.0,63478.0,2.31105166]
[1721331211240,0.005829,63479.0,63478.0,2.32359644]
[1721331211454,0.005829,63479.0,63478.0,2.23855166]
[1721331212122,0.16021074,63479.0,63478.0,1.33648266]
[1721331212349,0.16021074,63479.0,63478.0,0.70634466]
[1721331212584,0.16021074,63479.0,63478.0,0.70610863]
[1721331212834,0.16021074,63479.0,63478.0,0.028]
[1721331213066,0.30061074,63479.0,63478.0,0.185534]
[1721331213285,0.25061074,63479.0,63478.0,0.500603]
[1721331213978,0.16021074,63479.0,63478.0,1.23594483]
[1721331214200,0.16021074,63479.0,63478.0,1.33594483]
[1721331215377,0.005829,63479.0,63478.0,1.33594483]
[1721331215823,0.16021074,63479.0,63478.0,1.33551997]
[1721331216041,0.005829,63479.0,63478.0,1.33551997]
[1721331216262,0.005829,63479.0,63478.0,1.33540028]
[1721331216517,0.005829,63479.0,63478.0,1.65046928]
[1721331216741,0.005829,63479.0,63478.0,1.65045972]
[1721331217196,0.005829,63479.0,63478.0,1.72575972]
[1721331218829,0.005829,63479.0,63478.0,1.72549863]
[1721331220552,0.005829,63479.0,63478.0,2.04056763]
[1721331221211,0.005829,63479.0,63478.0,2.13116763]
[1721331221972,0.04957107,63491.0,63490.0,1.888155]
[1721331222194,0.04957107,63491.0,63490.0,2.17547791]
[1721331222417,0.46304871,63504.0,63495.0,1.102447]
[1721331222651,0.46304871,63504.0,63495.0,1.30656991]
[1721331222878,0.04901584,63504.0,63495.0,1.30656991]
[1721331223117,0.04901584,63504.0,63495.0,1.62155491]
[1721331225075,0.04901584,63504.0,63495.0,1.62130389]
[1721331225484,0.04901584,63504.0,63495.0,1.517432]
[1721331225487,0.04901584,63504.0,63495.0,1.63550644]
[1721331225932,0.00833,63506.0,63495.0,1.63550644]
[1721331226143,0.00833,63506.0,63495.0,1.64950644]
[1721331227777,0.00833,63506.0,63495.0,2.97859144]
[1721331228005,0.00833,63506.0,63495.0,2.044517]
[1721331228234,0.00833,63506.0,63495.0,2.14863498]
[1721331228701,0.00833,63506.0,63495.0,2.98463498]
[1721331228968,0.00833,63506.0,63495.0,2.94063498]
[1721331229200,0.00833,63506.0,63499.0,2.232307]
[1721331229418,0.00833,63506.0,63499.0,2.73732498]
[1721331230597,0.00833,63506.0,63499.0,2.75132498]
[1721331231050,0.00833,63506.0,63499.0,2.83902498]
[1721331231272,0.00833,63506.0,63499.0,2.83968042]
[1721331231484,0.00833,63506.0,63505.0,0.157467]
[1721331231485,1e-06,63506.0,63505.0,0.157467]
[1721331231709,0.00834,63519.0,63515.0,0.972329]
[1721331231987,0.00834,63519.0,63515.0,2.28746042]
[1721331232202,0.00834,63519.0,63518.0,0.787177]
[1721331232421,0.00834,63525.0,63524.0,1.767643]
[1721331232638,0.00834,63525.0,63524.0,2.5750022]
[1721331232889,0.00834,63525.0,63524.0,2.8898432]
[1721331233116,0.00834,63525.0,63524.0,2.5750022]
[1721331233334,0.00834,63525.0,63524.0,1.9776022]
[1721331233555,0.00834,63525.0,63524.0,2.4776022]
[1721331233783,0.00834,63525.0,63524.0,2.45149831]
[1721331234210,0.00834,63525.0,63524.0,2.43907251]
[1721331234432,0.00834,63525.0,63524.0,2.45307251]
[1721331234720,0.00834,63525.0,63524.0,2.37169452]
[1721331234938,0.00834,63528.0,63524.0,2.37169452]
[1721331234939,0.00834,63528.0,63526.0,1.259324]
[1721331235164,0.00834,63528.0,63527.0,1.01640653]
[1721331235392,0.00834,63528.0,63527.0,1.37464305]
[1721331235607,0.00834,63528.0,63527.0,1.68946905]
[1721331236495,0.00834,63528.0,63527.0,1.72970425]
[1721331236713,0.00834,63528.0,63527.0,1.74370425]
[1721331236938,0.00834,63528.0,63527.0,1.72970425]
[1721331237172,0.00834,63528.0,63527.0,1.59712752]
[1721331237403,0.00834,63528.0,63527.0,1.70364814]
[1721331237837,0.00834,63528.0,63527.0,1.90678334]
[1721331238070,0.04914166,63542.0,63541.0,0.657378]
[1721331238312,0.12631579,63571.0,63547.0,0.786817]
[1721331238313,0.46304871,63548.0,63547.0,0.786817]
[1721331238567,0.46304871,63548.0,63547.0,1.80599162]
[1721331238788,0.0736,63561.0,63560.0,0.157331]
[1721331239012,0.05,63556.0,63551.0,0.314706]
[1721331239248,0.31788174,63555.0,63554.0,0.472039]
[1721331239472,0.31788174,63555.0,63554.0,0.257346]
[1721331239473,0.36788174,63555.0,63554.0,0.257346]
[1721331239683,0.31788174,63555.0,63554.0,0.257346]
[1721331239937,0.31788174,63555.0,63554.0,0.61476812]
[1721331240386,0.31788174,63555.0,63554.0,0.1]
[1721331240610,0.05,63554.0,63550.0,0.414708]
[1721331240854,0.15831577,63553.0,63550.0,0.414708]
[1721331241087,0.2135,63552.0,63551.0,0.014]
[1721331241311,0.05,63547.0,63543.0,0.20716487]
[1721331241529,0.07717479,63557.0,63544.0,0.157371]
[1721331241530,0.32181622,63546.0,63544.0,0.157371]
[1721331241986,0.31788174,63546.0,63544.0,0.157371]
[1721331242217,0.05,63544.0,63538.0,0.314769]
[1721331242454,0.31788174,63546.0,63533.0,0.5491362]
[1721331242455,0.05,63541.0,63539.0,0.1]
[1721331242688,0.15438174,63540.0,63539.0,0.657381]
[1721331242922,0.15438174,63540.0,63539.0,0.472148]
[1721331243166,0.15438174,63540.0,63533.0,0.0491362]
[1721331243167,0.05,63539.0,63533.0,0.0491362]
[1721331243411,0.28027574,63538.0,63534.0,0.157395]
[1721331243639,0.23027574,63538.0,63534.0,0.157395]
[1721331244504,0.22748174,63538.0,63535.0,0.6]
[1721331244725,0.22748174,63538.0,63535.0,0.757392]
[1721331245161,0.05,63536.0,63535.0,0.1]
[1721331245389,0.15438174,63536.0,63534.0,0.014]
[1721331245607,0.15717574,63535.0,63534.0,0.171394]
[1721331245826,0.15438174,63535.0,63534.0,0.171394]
[1721331246164,0.15438174,63535.0,63534.0,0.271394]
[1721331246275,0.15438174,63535.0,63534.0,0.285394]
[1721331246500,0.15438174,63535.0,63534.0,0.257394]
[1721331246725,0.15438174,63535.0,63534.0,0.586186]
[1721331246952,0.15438174,63535.0,63534.0,0.900978]
[1721331247176,0.15438174,63535.0,63534.0,0.886978]
[1721331247405,0.15438174,63535.0,63534.0,0.900978]
[1721331248543,0.15438174,63535.0,63534.0,1.33508881]
[1721331248768,0.15438174,63535.0,63534.0,1.02029681]
[1721331249057,0.15438174,63535.0,63534.0,1.33510288]
[1721331249716,0.15438174,63535.0,63534.0,1.32110288]
[1721331250146,0.15438174,63535.0,63534.0,1.33510288]
[1721331251504,0.15438174,63535.0,63534.0,1.02031088]
[1721331252178,0.15438174,63535.0,63534.0,1.33512692]
[1721331252407,0.15438174,63535.0,63534.0,1.22977]
[1721331252655,0.15438174,63535.0,63534.0,1.33506805]
[1721331254286,0.0915,63546.0,63545.0,0.157368]
[1721331254517,0.0915,63546.0,63545.0,0.99214005]
[1721331254518,0.24588174,63546.0,63545.0,0.99214005]
[1721331255638,0.29588174,63546.0,63545.0,0.76043639]
[1721331255863,0.24588174,63546.0,63545.0,0.69140305]
[1721331256084,0.29588174,63546.0,63545.0,0.69140305]
[1721331256814,0.37138174,63546.0,63545.0,0.27402717]
[1721331257044,0.37138174,63546.0,63545.0,0.126]
[1721331257270,0.37138174,63546.0,63545.0,0.026]
[1721331257720,0.37138174,63546.0,63545.0,0.014]
[1721331257951,0.37138174,63546.0,63545.0,0.026]
[1721331258175,0.37138174,63546.0,63545.0,0.183368]
[1721331258399,0.32138174,63546.0,63545.0,0.28853355]
[1721331258633,0.37138174,63546.0,63545.0,0.37453355]
[1721331258928,0.32138174,63546.0,63545.0,0.38853355]
[1721331259169,0.37138174,63546.0,63545.0,0.37453355]
[1721331259600,0.37138174,63546.0,63545.0,0.38853355]
[1721331259820,0.37138174,63546.0,63545.0,0.37653355]
[1721331260030,0.32138174,63546.0,63545.0,0.37653355]
[1721331260243,0.37138174,63546.0,63545.0,0.21916555]
[1721331260739,0.37138174,63546.0,63545.0,0.23216555]
[1721331261466,0.37138174,63546.0,63545.0,0.23233572]
[1721331261867,0.37138174,63546.0,63545.0,0.23252678]
[1721331262737,0.32138174,63546.0,63545.0,0.70463178]
[1721331262954,0.15438174,63546.0,63545.0,1.33410578]
[1721331263613,0.004764,63555.0,63554.0,0.786732]
[1721331263836,0.004764,63555.0,63554.0,0.89225878]
[1721331263837,0.15521174,63555.0,63554.0,0.89225878]
[1721331264052,0.15521174,63555.0,63554.0,1.30695178]
[1721331264264,0.15521174,63555.0,63554.0,1.0349879]
[1721331264538,0.15521174,63555.0,63554.0,0.99225878]
[1721331264780,0.15521174,63555.0,63554.0,0.92946112]
[1721331264987,0.15521174,63555.0,63554.0,1.03539925]
[1721331265202,0.15521174,63555.0,63554.0,1.04639925]
[1721331265479,0.15521174,63555.0,63554.0,1.31836313]
[1721331265699,0.00083,63555.0,63554.0,1.36109225]
[1721331265910,0.00083,63555.0,63554.0,1.85898525]
[1721331266128,0.00083,63555.0,63554.0,1.93314368]
[1721331266350,0.00083,63555.0,63554.0,1.9758728]
[1721331266570,0.15521174,63555.0,63554.0,1.0898868]
[1721331266823,0.15521174,63555.0,63554.0,1.0978868]
[1721331267285,0.15521174,63555.0,63554.0,1.0898868]
[1721331267523,0.22581174,63555.0,63554.0,1.0898868]
[1721331267750,0.22581174,63555.0,63554.0,1.1038868]
[1721331267988,0.22581174,63555.0,63554.0,1.0928868]
[1721331268203,0.22581174,63555.0,63554.0,1.02067013]
[1721331268653,0.22581174,63555.0,63554.0,1.00667013]
[1721331268865,0.22581174,63555.0,63554.0,1.02067013]
[1721331269078,0.15521174,63555.0,63554.0,0.99267013]
[1721331269334,0.15521174,63555.0,63554.0,1.00567013]
[1721331269548,0.15521174,63555.0,63554.0,1.01967013]
[1721331270195,0.15521174,63555.0,63554.0,1.33436313]
[1721331270430,0.15521174,63555.0,63554.0,1.32136313]
[1721331270645,0.15521174,63555.0,63554.0,1.33538235]
[1721331271080,0.15521174,63555.0,63554.0,1.33538608]
[1721331271300,0.15521174,63555.0,63554.0,1.38047785]
[1721331271777,0.15521174,63555.0,63554.0,1.36647785]
[1721331271983,0.15521174,63555.0,63554.0,1.32138608]
[1721331272215,0.15521174,63555.0,63554.0,1.33538608]
[1721331272662,0.15521174,63555.0,63554.0,1.38047785]
[1721331273109,0.15521174,63555.0,63554.0,1.36647785]
[1721331273324,0.15521174,63555.0,63554.0,1.35247785]
[1721331273571,0.15521174,63555.0,63554.0,1.41049189]
[1721331273780,0.15521174,63555.0,63554.0,1.42449189]
[1721331274010,0.15521174,63555.0,63554.0,1.42388583]
[1721331274238,0.15521174,63555.0,63554.0,1.10919283]
[1721331274700,0.15521174,63555.0,63554.0,1.37987179]
[1721331274942,0.15521174,63555.0,63554.0,1.02008702]
[1721331275612,0.15521174,63555.0,63554.0,1.06517879]
[1721331276048,0.15521174,63555.0,63554.0,1.02008702]
[1721331276489,0.15521174,63555.0,63554.0,1.33478002]
[1721331277071,0.15521174,63555.0,63554.0,1.83478002]
[1721331277671,0.00083,63555.0,63554.0,1.83478002]
[1721331277874,0.00083,63555.0,63554.0,1.92675071]
[1721331278122,0.00083,63555.0,63554.0,1.97076475]
[1721331278541,0.00083,63555.0,63554.0,2.12916475]
[1721331278749,0.00083,63555.0,63554.0,2.39697883]
[1721331278957,0.00083,63555.0,63554.0,2.44385775]
[1721331279367,0.00083,63555.0,63554.0,2.44385348]
[1721331279978,0.00083,63555.0,63554.0,2.29162381]
[1721331280217,0.00083,63555.0,63554.0,2.39612612]
[1721331280418,0.00083,63555.0,63554.0,2.29162381]
[1721331280604,0.00083,63555.0,63554.0,2.44299449]
[1721331281039,0.00083,63555.0,63554.0,2.39612585]
[1721331281240,0.00083,63555.0,63554.0,2.5888]
[1721331281438,0.00083,63555.0,63554.0,2.68254889]
[1721331281656,0.00083,63555.0,63554.0,4.18254889]
[1721331282108,0.00083,63555.0,63554.0,4.0888]
[1721331282747,0.00083,63555.0,63554.0,4.18254889]
[1721331283165,0.00083,63555.0,63554.0,3.79162381]
[1721331283366,0.00083,63555.0,63554.0,4.18113325]
[1721331283680,0.00083,63555.0,63554.0,4.15770708]
[1721331283929,0.00083,63555.0,63554.0,4.08744707]
[1721331284148,0.00083,63555.0,63554.0,4.15770148]
[1721331284836,0.00083,63555.0,63554.0,3.8961468]
[1721331285258,0.00083,63555.0,63554.0,4.15867606]
[1721331285481,0.00083,63555.0,63554.0,3.96640121]
[1721331285699,0.00083,63555.0,63554.0,4.15837146]
[1721331285929,0.00083,63555.0,63554.0,4.08811705]
[1721331286142,0.00083,63555.0,63554.0,4.18180323]
[1721331286369,0.00083,63555.0,63554.0,4.07615164]
[1721331286611,0.00083,63555.0,63554.0,4.1804353]
[1721331286850,0.00083,63555.0,63554.0,4.08679204]
[1721331287108,0.00083,63555.0,63554.0,4.4951283]
[1721331287341,0.00083,63555.0,63554.0,4.18042193]
[1721331287816,0.00083,63555.0,63554.0,4.08679204]
[1721331288287,0.00083,63555.0,63554.0,4.042778]
[1721331288509,0.00083,63555.0,63554.0,4.31237923]
[1721331289402,0.00083,63555.0,63554.0,4.44489088]
[1721331289636,0.00083,63555.0,63554.0,4.30919153]
[1721331289856,0.00083,63555.0,63554.0,4.30883693]
[1721331290072,0.00083,63555.0,63554.0,4.33183693]
[1721331290307,0.00083,63555.0,63554.0,5.04183693]
[1721331290538,0.00834,63564.0,63563.0,2.393464]
[1721331290748,0.00834,63564.0,63563.0,3.06121085]
[1721331290981,0.00834,63564.0,63563.0,3.08459719]
[1721331291194,0.00834,63564.0,63563.0,4.58459719]
[1721331291410,0.00834,63564.0,63563.0,4.49105182]
[1721331291630,0.00834,63564.0,63563.0,4.76152591]
[1721331291844,0.00834,63564.0,63563.0,4.58459719]
[1721331292058,0.00834,63564.0,63563.0,4.71994285]
[1721331292301,0.00834,63564.0,63563.0,4.73394285]
[1721331292529,0.00834,63564.0,63563.0,4.72970402]
[1721331292979,0.00834,63564.0,63563.0,4.74370402]
[1721331293415,0.00834,63564.0,63563.0,4.65018992]
[1721331293626,0.00834,63564.0,63563.0,4.74370402]
[1721331294304,0.00834,63564.0,63563.0,4.78528708]
[1721331294517,0.00834,63564.0,63563.0,4.53347734]
[1721331294736,0.00834,63564.0,63563.0,4.65477298]
[1721331294955,0.00834,63564.0,63563.0,4.61318992]
[1721331295438,0.00834,63564.0,63563.0,4.697266]
[1721331295654,0.47418271,63580.0,63579.0,1.600991]
[1721331295872,0.47138871,63580.0,63579.0,1.80452853]
[1721331296065,0.00834,63580.0,63579.0,1.80452853]
[1721331296548,0.16272174,63580.0,63579.0,1.03154259]
[1721331296765,0.16272174,63580.0,63579.0,0.71697359]
[1721331296766,0.36892174,63580.0,63579.0,0.71697359]
[1721331296978,0.36892174,63580.0,63579.0,0.67539053]
[1721331297253,0.36892174,63580.0,63579.0,1.00395953]
[1721331297902,0.31892174,63580.0,63579.0,1.00395953]
[1721331298154,0.31892174,63580.0,63579.0,1.83252853]
[1721331298609,0.31892174,63580.0,63579.0,1.83289068]
[1721331299073,0.31892174,63580.0,63579.0,1.728991]
[1721331299290,0.31892174,63580.0,63579.0,1.83248189]
[1721331299520,0.16272174,63580.0,63579.0,1.83248189]
[1721331299793,0.00834,63580.0,63579.0,2.46161989]
[1721331300253,0.00834,63580.0,63579.0,2.14705089]
[1721331300475,0.16272174,63580.0,63579.0,1.83248189]
[1721331300721,0.23122174,63580.0,63579.0,1.83248189]
[1721331300945,0.36882174,63580.0,63579.0,0.11749089]
[1721331301172,0.36882174,63580.0,63579.0,0.13242003]
[1721331301399,0.31882174,63580.0,63579.0,0.28970403]
[1721331301630,0.31882174,63580.0,63579.0,0.91884203]
[1721331301856,0.31882174,63580.0,63579.0,1.23341103]
[1721331301857,0.00834,63580.0,63579.0,1.23341103]
[1721331302078,0.00834,63580.0,63579.0,1.53398003]
[1721331302316,0.16272174,63580.0,63579.0,1.01884203]
[1721331302828,0.16272174,63580.0,63579.0,1.00484203]
[1721331303037,0.00834,63580.0,63579.0,1.33341103]
[1721331303474,0.00834,63580.0,63579.0,1.31941103]
[1721331303705,0.00834,63580.0,63579.0,1.214991]
[1721331303924,0.00834,63580.0,63579.0,1.64696009]
[1721331304151,0.00834,63580.0,63579.0,1.33239109]
[1721331304376,0.00834,63580.0,63579.0,1.34639109]
[1721331304838,0.00834,63580.0,63579.0,1.31839109]
[1721331305065,0.00834,63580.0,63579.0,1.63296009]
[1721331305284,0.00834,63580.0,63579.0,1.31839109]
[1721331305737,0.00834,63580.0,63579.0,1.73656009]
[1721331305956,0.00834,63580.0,63579.0,1.42199109]
[1721331306174,0.00834,63580.0,63579.0,1.73656009]
[1721331306841,0.00834,63580.0,63579.0,1.73640257]
[1721331307283,0.00834,63580.0,63579.0,3.2363558]
[1721331308646,0.00834,63580.0,63579.0,3.28306763]
[1721331309070,0.00834,63580.0,63579.0,3.2363558]
[1721331309720,0.00834,63580.0,63579.0,3.6467558]
[1721331309941,0.00834,63580.0,63579.0,2.04356]
[1721331310165,0.00834,63580.0,63579.0,2.132676]
[1721331310387,0.00834,63580.0,63579.0,2.146676]
[1721331310830,0.00834,63580.0,63579.0,1.332107]
[1721331311050,0.00834,63580.0,63579.0,1.318107]
[1721331311277,0.00834,63580.0,63579.0,0.588969]
[1721331311278,0.16272174,63580.0,63579.0,0.588969]
[1721331311495,0.16272174,63580.0,63579.0,0.917538]
[1721331311947,0.16272174,63580.0,63579.0,1.232107]
[1721331312396,0.00834,63580.0,63579.0,1.732107]
[1721331312661,0.00834,63580.0,63579.0,1.832107]
[1721331313083,0.00834,63580.0,63579.0,1.83322924]
[1721331315101,0.00834,63580.0,63579.0,2.14779824]
[1721331315355,0.00834,63580.0,63579.0,1.83322924]
[1721331315589,0.00834,63580.0,63579.0,3.33322924]
[1721331316028,0.00834,63580.0,63579.0,3.228991]
[1721331316252,0.00834,63580.0,63579.0,3.64784476]
[1721331316534,0.00834,63580.0,63579.0,3.38000564]
[1721331316748,0.00834,63580.0,63579.0,3.64784476]
[1721331316974,0.00834,63580.0,63579.0,4.05546787]
[1721331317200,0.00834,63580.0,63579.0,4.58376157]
[1721331317450,0.00834,63580.0,63579.0,4.46693687]
[1721331317689,0.00834,63580.0,63579.0,4.58373354]
[1721331318158,0.00834,63580.0,63579.0,4.52610879]
[1721331318379,0.00834,63580.0,63579.0,4.49190238]
[1721331318601,0.00834,63580.0,63579.0,4.50590238]
[1721331318823,0.00834,63580.0,63579.0,4.47790238]
[1721331319063,0.00834,63580.0,63579.0,4.47618543]
[1721331319289,0.00834,63580.0,63579.0,4.49018543]
[1721331319507,0.00834,63580.0,63579.0,4.17561643]
[1721331319727,0.00834,63580.0,63579.0,4.15261643]
[1721331320418,0.0001,63586.0,63585.0,1.415425]
[1721331320651,0.0001,63586.0,63585.0,1.80271507]
[1721331321092,0.0001,63586.0,63585.0,2.19055056]
[1721331321316,0.0001,63586.0,63585.0,3.30271507]
[1721331321544,0.0001,63586.0,63585.0,3.55426539]
[1721331321763,0.0001,63586.0,63585.0,3.48417354]
[1721331322007,0.0001,63586.0,63585.0,3.46417496]
[1721331322234,0.0001,63586.0,63585.0,3.38656875]
[1721331322463,0.0001,63586.0,63585.0,3.37720996]
[1721331322999,0.0001,63586.0,63585.0,1.87720996]
[1721331323556,0.0001,63586.0,63585.0,1.83047999]
[1721331324007,0.0001,63586.0,63585.0,1.56267096]
[1721331324242,0.0001,63586.0,63585.0,1.51594099]
[1721331324948,0.0001,63586.0,63585.0,1.412086]
[1721331325167,0.0001,63586.0,63585.0,1.51509119]
[1721331325397,0.0001,63586.0,63585.0,1.51509714]
[1721331325831,0.0001,63586.0,63585.0,1.412086]
[1721331326054,0.0001,63586.0,63585.0,1.51509507]
[1721331326268,0.0001,63586.0,63585.0,1.56185887]
[1721331326491,0.0001,63586.0,63585.0,1.82963407]
[1721331326953,0.0001,63586.0,63585.0,1.89977977]
[1721331327408,0.06763,63595.0,63594.0,1.100732]
[1721331327650,0.06763,63595.0,63594.0,1.30374107]
[1721331328350,0.06763,63595.0,63594.0,1.200732]
[1721331328575,0.06763,63595.0,63594.0,1.30341472]
[1721331328800,0.06763,63595.0,63594.0,1.31741472]
[1721331329019,0.1069389,63597.0,63596.0,1.100697]
[1721331329232,0.16862064,63597.0,63596.0,1.30337972]
[1721331329944,0.0142389,63597.0,63596.0,1.30337972]
[1721331330157,0.0142389,63597.0,63596.0,1.61786472]
[1721331330833,0.0142389,63597.0,63596.0,1.63186472]
[1721331331513,0.16862064,63597.0,63596.0,0.914212]
[1721331331732,0.16862064,63597.0,63596.0,1.00674688]
[1721331331958,0.16862064,63597.0,63596.0,1.02074688]
[1721331332191,0.16862064,63597.0,63596.0,1.00674688]
[1721331332417,0.16862064,63597.0,63596.0,1.02074688]
[1721331332631,0.38272064,63597.0,63596.0,0.70626188]
[1721331332856,0.33272064,63597.0,63596.0,0.70626188]
[1721331333335,0.33272064,63597.0,63596.0,1.02074688]
[1721331334263,0.33272064,63597.0,63596.0,1.33523188]
[1721331334517,0.23962064,63597.0,63596.0,1.33523188]
[1721331334730,0.23962064,63597.0,63596.0,1.228697]
[1721331334955,0.0142389,63597.0,63596.0,1.33488901]
[1721331335173,0.0142389,63597.0,63596.0,1.33460967]
[1721331335397,0.0142389,63597.0,63596.0,1.69592947]
[1721331335632,0.0142389,63597.0,63596.0,1.71934687]
[1721331335899,0.0142389,63597.0,63596.0,1.64909467]
[1721331336980,0.0142389,63597.0,63596.0,1.69593593]
[1721331337465,0.0142389,63597.0,63596.0,1.64909467]
[1721331337703,0.0142389,63597.0,63596.0,1.543182]
[1721331337937,0.0142389,63597.0,63596.0,1.67175304]
[1721331338398,0.0142389,63597.0,63596.0,1.71859177]
[1721331338847,0.0142389,63597.0,63596.0,3.17175304]
[1721331339989,0.0142389,63597.0,63596.0,3.21858779]
[1721331340241,0.0142389,63597.0,63596.0,1.92366985]
[1721331340471,0.0142389,63597.0,63596.0,1.85341274]
[1721331340689,0.0142389,63597.0,63596.0,1.7419869]
[1721331340914,0.0142389,63597.0,63596.0,1.67173968]
[1721331341610,0.0150689,63597.0,63596.0,1.67173968]
[1721331342308,0.0150689,63597.0,63596.0,1.92382947]
[1721331343889,0.0150689,63597.0,63596.0,1.92328036]
[1721331344329,0.0150689,63597.0,63596.0,3.35290271]
[1721331344541,0.0150689,63597.0,63596.0,3.49034035]
[1721331344748,0.0150689,63597.0,63596.0,3.24164219]
[1721331345468,0.0150689,63597.0,63596.0,0.41344586]
[1721331345469,0.25645064,63597.0,63596.0,0.41344586]
[1721331345701,0.37615064,63597.0,63596.0,0.39134463]
[1721331345924,0.37615064,63597.0,63596.0,0.70582963]
[1721331346153,0.37615064,63597.0,63596.0,0.39134463]
[1721331346154,0.33148967,63597.0,63596.0,0.39134463]
[1721331346375,0.32615064,63597.0,63596.0,0.71393857]
[1721331346605,0.32615064,63597.0,63596.0,1.04242357]
[1721331346863,0.32615064,63597.0,63596.0,0.914212]
[1721331347096,0.32615064,63597.0,63596.0,1.0433819]
[1721331347326,0.32615064,63597.0,63596.0,1.0293819]
[1721331347561,0.16945064,63597.0,63596.0,1.3578669]
[1721331347776,0.0150689,63597.0,63596.0,1.3578669]
[1721331347998,0.0150689,63597.0,63596.0,1.3438669]
[1721331348220,0.0150689,63597.0,63596.0,1.3558669]
[1721331348463,0.0150689,63597.0,63596.0,1.42617371]
[1721331348723,0.0150689,63597.0,63596.0,1.3418669]
[1721331348953,0.0150689,63597.0,63596.0,1.3518669]
[1721331350083,0.0150689,63597.0,63596.0,1.3565394]
[1721331350319,0.0150689,63597.0,63596.0,1.69091775]
[1721331350543,0.0150689,63597.0,63596.0,1.61796185]
[1721331350774,0.0150689,63597.0,63596.0,1.56952845]
[1721331351004,0.0150689,63597.0,63596.0,1.61826437]
[1721331351460,0.0150689,63597.0,63596.0,1.61973547]
[1721331351900,0.0150689,63597.0,63596.0,1.4268949]
[1721331352316,0.0150689,63597.0,63596.0,1.62013685]
[1721331352789,0.0150689,63597.0,63596.0,1.6924149]
[1721331353026,0.0150689,63597.0,63596.0,1.222697]
[1721331353254,0.0150689,63597.0,63596.0,1.61965877]
[1721331353493,0.0150689,63597.0,63596.0,1.5082886]
[1721331353725,0.0150689,63597.0,63596.0,1.69182132]
[1721331354172,0.0150689,63597.0,63596.0,1.76219691]
[1721331355341,0.0150689,63597.0,63596.0,1.42676096]
[1721331355798,0.0150689,63597.0,63596.0,1.76208389]
[1721331356217,0.0150689,63597.0,63596.0,1.49893356]
[1721331356439,0.0150689,63597.0,63596.0,1.6923715]
[1721331356709,0.0150689,63597.0,63596.0,1.78619948]
[1721331357151,0.0150689,63597.0,63596.0,1.6923715]
[1721331357610,0.0150689,63597.0,63596.0,1.78619948]
[1721331358487,0.0150689,63597.0,63596.0,1.6923715]
[1721331359183,0.0150689,63597.0,63596.0,1.6823715]
[1721331359394,0.0150689,63597.0,63596.0,1.68306671]
[1721331359612,0.0150689,63597.0,63596.0,1.69706671]
[1721331359831,0.0150689,63597.0,63596.0,2.01155171]
[1721331360061,0.0150689,63597.0,63596.0,2.17095171]
[1721331360306,0.0150689,63597.0,63596.0,3.67095171]
[1721331360537,0.0150689,63597.0,63596.0,3.65695171]
[1721331360972,0.0150689,63597.0,63596.0,3.19706671]
[1721331360973,0.0892689,63597.0,63596.0,3.19706671]
[1721331361197,0.33535064,63597.0,63596.0,1.33397508]
[1721331361422,0.33535064,63597.0,63596.0,1.22603737]
[1721331361684,0.33535064,63597.0,63596.0,0.67850316]
[1721331361907,0.38535064,63597.0,63596.0,0.80396889]
[1721331362132,0.38535064,63597.0,63596.0,1.09045238]
[1721331362365,0.34070004,63597.0,63596.0,1.01998478]
[1721331362581,0.33535064,63597.0,63596.0,1.11845238]
[1721331362802,0.39070004,63597.0,63596.0,1.04798478]
[1721331363051,0.38535064,63597.0,63596.0,1.1089589]
[1721331363265,0.39070004,63597.0,63596.0,1.1089589]
[1721331363481,0.39070004,63597.0,63596.0,0.4799889]
[1721331363706,0.39070004,63597.0,63596.0,0.71119273]
[1721331363947,0.39070004,63597.0,63596.0,0.73348415]
[1721331364203,0.39070004,63597.0,63596.0,0.24775715]
[1721331364439,0.38535064,63597.0,63596.0,0.12546573]
[1721331364684,0.39067803,63597.0,63596.0,0.14011803]
[1721331365137,0.34067803,63597.0,63596.0,0.59784503]
[1721331365374,0.39067803,63597.0,63596.0,0.58384503]
[1721331365602,0.39067803,63597.0,63596.0,0.59784503]
[1721331365831,0.39067803,63597.0,63596.0,0.69784503]
[1721331366282,0.39067803,63597.0,63596.0,0.71184503]
[1721331366738,0.39067803,63597.0,63596.0,0.69784503]
[1721331367193,0.39067803,63597.0,63596.0,0.71184503]
[1721331367627,0.34067803,63597.0,63596.0,1.01233003]
[1721331367852,0.02039629,63597.0,63596.0,1.34081503]
[1721331368131,0.02039629,63597.0,63596.0,1.36402616]
[1721331368350,0.0150689,63597.0,63596.0,1.36402616]
[1721331368793,0.0150689,63597.0,63596.0,2.86402616]
[1721331369011,0.16945064,63597.0,63596.0,1.02707698]
[1721331369230,0.29245064,63597.0,63596.0,0.24086498]
[1721331369491,0.55692948,63597.0,63596.0,0.14086498]
[1721331369712,0.2122,63583.0,63582.0,0.06590105]
[1721331369954,0.36658174,63583.0,63582.0,0.18219276]
[1721331370186,0.36658174,63583.0,63582.0,0.11629171]
[1721331370187,0.37189369,63583.0,63582.0,0.11629171]
[1721331370911,0.37189369,63583.0,63582.0,0.13029171]
[1721331371581,0.37189369,63583.0,63582.0,0.2430037]
[1721331371795,0.36658174,63583.0,63582.0,0.2150037]
[1721331372039,0.36658174,63583.0,63582.0,0.21499929]
[1721331372276,0.36658174,63583.0,63582.0,0.22899929]
[1721331372489,0.36658174,63583.0,63582.0,0.22900158]
[1721331373050,0.36658174,63583.0,63582.0,0.12900158]
[1721331373285,0.37165381,63583.0,63582.0,0.014913]
[1721331373495,0.37265381,63583.0,63582.0,0.026913]
[1721331374137,0.37265381,63583.0,63582.0,0.014913]
[1721331374138,0.37165381,63583.0,63582.0,0.014913]
[1721331374342,0.37165381,63583.0,63582.0,0.000913]
[1721331374612,0.37265381,63583.0,63582.0,0.012913]
[1721331374828,0.37265381,63583.0,63582.0,0.025913]
[1721331375037,0.37365381,63583.0,63582.0,0.025913]
[1721331375238,0.37165381,63583.0,63582.0,0.000913]
[1721331375451,0.37165381,63583.0,63582.0,0.013913]
[1721331375653,0.37265381,63583.0,63582.0,0.013913]
[1721331375918,0.32365381,63583.0,63582.0,0.17119]
[1721331376113,0.37365381,63583.0,63582.0,0.386288]
[1721331376321,0.37365381,63583.0,63582.0,0.700842]
[1721331376538,0.37365381,63583.0,63582.0,0.22898413]
[1721331376539,0.36858174,63583.0,63582.0,0.22898413]